[Event "Titled Tuesday Blitz July 6 2021"]
[White "Pert, Richard G"]
[Black "Golubenko, Valentina"]
[WhiteFideId "404748"]
[BlackFideId "4501993"]
[WhiteElo "2441"]
[BlackElo "2164"]
[Result "1-0"]
[Round "05"]
[TimeControl "180+1"]
[Date "2021.07.06"]
[WhiteClock "0:01:21"]
[BlackClock "0:00:10"]

1. d4 {[%clk 0:03:00]}  g6 {[%clk 0:02:57]} 2. e4 {[%clk 0:03:00]}  Bg7 {[%clk 0:02:57]} 3. Nc3 {[%clk 0:03:00]}  c6 {[%clk 0:02:54]} 4. Nf3 {[%clk 0:02:59]}  d5 {[%clk 0:02:53]} 5. h3 {[%clk 0:02:51]}  dxe4 {[%clk 0:02:51]} 6. Nxe4 {[%clk 0:02:51]}  Bf5 {[%clk 0:02:50]} 7. Ng3 {[%clk 0:02:50]}  Bc8 {[%clk 0:02:46]} 8. Bc4 {[%clk 0:02:45]}  Nf6 {[%clk 0:02:44]} 9. O-O {[%clk 0:02:45]}  O-O {[%clk 0:02:43]} 10. Re1 {[%clk 0:02:44]}  Nbd7 {[%clk 0:02:42]} 11. c3 {[%clk 0:02:44]}  Nb6 {[%clk 0:02:26]} 12. Bb3 {[%clk 0:02:44]}  a5 {[%clk 0:02:25]} 13. a4 {[%clk 0:02:40]}  Nbd5 {[%clk 0:02:22]} 14. Bg5 {[%clk 0:02:37]}  Qc7 {[%clk 0:02:16]} 15. Ne5 {[%clk 0:02:33]}  Be6 {[%clk 0:01:40]} 16. Nd3 {[%clk 0:02:29]}  b6 {[%clk 0:01:36]} 17. Rxe6 {[%clk 0:02:19]}  fxe6 {[%clk 0:01:35]} 18. Qe2 {[%clk 0:02:20]}  h6 {[%clk 0:01:18]} 19. Qxe6+ {[%clk 0:02:16]}  Kh7 {[%clk 0:01:18]} 20. Bd2 {[%clk 0:02:12]}  Rad8 {[%clk 0:01:01]} 21. Re1 {[%clk 0:02:09]}  Rd6 {[%clk 0:01:00]} 22. Qe2 {[%clk 0:02:06]}  c5 {[%clk 0:00:48]} 23. dxc5 {[%clk 0:02:03]}  bxc5 {[%clk 0:00:48]} 24. Ne5 {[%clk 0:02:03]}  Nd7 {[%clk 0:00:40]} 25. Nc4 {[%clk 0:01:45]}  Rdf6 {[%clk 0:00:37]} 26. Ne4 {[%clk 0:01:42]}  Nf4 {[%clk 0:00:31]} 27. Nxf6+ {[%clk 0:01:39]}  Rxf6 {[%clk 0:00:23]} 28. Bxf4 {[%clk 0:01:38]}  Qxf4 {[%clk 0:00:22]} 29. Ne3 {[%clk 0:01:35]}  e6 {[%clk 0:00:15]} 30. Ng4 {[%clk 0:01:28]}  Rf5 {[%clk 0:00:12]} 31. Bxe6 {[%clk 0:01:24]}  Ne5 {[%clk 0:00:10]} 32. Bxf5 {[%clk 0:01:21]} 1-0


[Site "https://www.chess.com"]

[Event "Titled Tuesday Blitz July 6 2021"]
[White "Praveen, Kumar C"]
[Black "Oliveira, Silvio Eduardo"]
[WhiteFideId "5007372"]
[BlackFideId "2111560"]
[WhiteElo "2236"]
[BlackElo "2302"]
[Result "1-0"]
[Round "05"]
[TimeControl "180+1"]
[Date "2021.07.06"]
[WhiteClock "0:01:37"]
[BlackClock "0:00:19"]

1. d4 {[%clk 0:02:58]}  Nf6 {[%clk 0:02:59]} 2. c4 {[%clk 0:02:59]}  e6 {[%clk 0:03:00]} 3. Nc3 {[%clk 0:02:59]}  d5 {[%clk 0:03:01]} 4. cxd5 {[%clk 0:02:58]}  exd5 {[%clk 0:03:01]} 5. Bg5 {[%clk 0:02:57]}  c6 {[%clk 0:03:01]} 6. e3 {[%clk 0:02:58]}  h6 {[%clk 0:03:02]} 7. Bh4 {[%clk 0:02:57]}  Be7 {[%clk 0:03:03]} 8. Bd3 {[%clk 0:02:58]}  O-O {[%clk 0:03:03]} 9. Qc2 {[%clk 0:02:58]}  Re8 {[%clk 0:03:03]} 10. Nge2 {[%clk 0:02:54]}  Nh5 {[%clk 0:03:03]} 11. Bg3 {[%clk 0:02:51]}  Nxg3 {[%clk 0:03:01]} 12. hxg3 {[%clk 0:02:50]}  Nd7 {[%clk 0:03:01]} 13. O-O-O {[%clk 0:02:50]}  b5 {[%clk 0:03:00]} 14. Nf4 {[%clk 0:02:49]}  a5 {[%clk 0:02:57]} 15. Kb1 {[%clk 0:02:48]}  a4 {[%clk 0:02:57]} 16. e4 {[%clk 0:02:30]}  dxe4 {[%clk 0:02:38]} 17. Nxe4 {[%clk 0:02:29]}  Qb6 {[%clk 0:02:29]} 18. Rhe1 {[%clk 0:02:19]}  Bb7 {[%clk 0:02:22]} 19. Nc5 {[%clk 0:02:08]}  Nxc5 {[%clk 0:02:17]} 20. dxc5 {[%clk 0:02:06]}  Bxc5 {[%clk 0:02:17]} 21. Bh7+ {[%clk 0:01:57]}  Kh8 {[%clk 0:02:13]} 22. Qf5 {[%clk 0:01:50]}  Rxe1 {[%clk 0:01:05]} 23. Rxe1 {[%clk 0:01:50]}  Bb4 {[%clk 0:01:06]} 24. Qxf7 {[%clk 0:01:47]}  Bxe1 {[%clk 0:00:55]} 25. Ne6 {[%clk 0:01:45]}  Qd4 {[%clk 0:00:18]} 26. Nxd4 {[%clk 0:01:43]}  Kxh7 {[%clk 0:00:19]} 27. Qxb7 {[%clk 0:01:39]}  Re8 {[%clk 0:00:19]} 28. Nf5 {[%clk 0:01:37]} 1-0


[Site "https://www.chess.com"]

[Event "Titled Tuesday Blitz July 6 2021"]
[White "Priasmoro, Novendra"]
[Black "Abdusattorov, Nodirbek"]
[WhiteFideId "7105029"]
[BlackFideId "14204118"]
[WhiteElo "2309"]
[BlackElo "2662"]
[Result "0-1"]
[Round "05"]
[TimeControl "180+1"]
[Date "2021.07.06"]
[WhiteClock "0:01:26"]
[BlackClock "0:02:25"]

1. e4 {[%clk 0:03:00]}  c5 {[%clk 0:02:57]} 2. Nf3 {[%clk 0:03:00]}  e6 {[%clk 0:02:58]} 3. d4 {[%clk 0:03:01]}  cxd4 {[%clk 0:02:59]} 4. Nxd4 {[%clk 0:03:02]}  Nf6 {[%clk 0:02:59]} 5. Nc3 {[%clk 0:03:01]}  Nc6 {[%clk 0:02:59]} 6. Nxc6 {[%clk 0:02:53]}  bxc6 {[%clk 0:03:00]} 7. e5 {[%clk 0:02:54]}  Nd5 {[%clk 0:03:00]} 8. Ne4 {[%clk 0:02:54]}  Qc7 {[%clk 0:02:59]} 9. f4 {[%clk 0:02:44]}  Qb6 {[%clk 0:02:59]} 10. c4 {[%clk 0:02:43]}  Bb4+ {[%clk 0:03:00]} 11. Ke2 {[%clk 0:02:43]}  Ba6 {[%clk 0:02:58]} 12. Kf3 {[%clk 0:02:42]}  f5 {[%clk 0:02:32]} 13. Nd6+ {[%clk 0:02:42]}  Bxd6 {[%clk 0:02:32]} 14. exd6 {[%clk 0:02:43]}  Nf6 {[%clk 0:02:31]} 15. Be3 {[%clk 0:02:25]}  c5 {[%clk 0:02:30]} 16. Qd3 {[%clk 0:01:29]}  Bb7+ {[%clk 0:02:25]} 17. Ke2 {[%clk 0:01:26]}  Qxb2+ {[%clk 0:02:25]} 0-1


[Site "https://www.chess.com"]

[Event "Titled Tuesday Blitz July 6 2021"]
[White "Quintiliano Pinto, Renato R."]
[Black "Hamley, Ryan"]
[WhiteFideId "2117568"]
[BlackFideId "30959497"]
[WhiteElo "2439"]
[BlackElo "2454"]
[Result "1-0"]
[Round "05"]
[TimeControl "180+1"]
[Date "2021.07.06"]
[WhiteClock "0:00:20"]
[BlackClock "0:00:02"]

1. e4 {[%clk 0:03:00]}  c5 {[%clk 0:02:52]} 2. Nf3 {[%clk 0:03:00]}  d6 {[%clk 0:02:51]} 3. d4 {[%clk 0:03:00]}  cxd4 {[%clk 0:02:48]} 4. Qxd4 {[%clk 0:03:01]}  Bd7 {[%clk 0:02:37]} 5. Be2 {[%clk 0:03:00]}  Nc6 {[%clk 0:02:37]} 6. Qe3 {[%clk 0:03:00]}  g6 {[%clk 0:02:37]} 7. O-O {[%clk 0:02:59]}  Bg7 {[%clk 0:02:35]} 8. c4 {[%clk 0:02:57]}  Nf6 {[%clk 0:02:35]} 9. h3 {[%clk 0:02:57]}  O-O {[%clk 0:02:34]} 10. Nc3 {[%clk 0:02:57]}  Rc8 {[%clk 0:02:34]} 11. Rd1 {[%clk 0:02:47]}  a6 {[%clk 0:02:18]} 12. Bd2 {[%clk 0:02:36]}  h6 {[%clk 0:01:56]} 13. Rac1 {[%clk 0:02:30]}  Be6 {[%clk 0:01:53]} 14. b3 {[%clk 0:02:25]}  Kh7 {[%clk 0:01:51]} 15. Nd5 {[%clk 0:02:21]}  Nd7 {[%clk 0:01:35]} 16. Bc3 {[%clk 0:02:14]}  Nde5 {[%clk 0:01:27]} 17. Nxe5 {[%clk 0:02:10]}  Bxe5 {[%clk 0:01:25]} 18. f4 {[%clk 0:02:09]}  Bxc3 {[%clk 0:01:25]} 19. Nxc3 {[%clk 0:02:03]}  f5 {[%clk 0:01:21]} 20. exf5 {[%clk 0:02:00]}  Bxf5 {[%clk 0:01:22]} 21. Kh1 {[%clk 0:01:56]}  Bd7 {[%clk 0:01:09]} 22. Bd3 {[%clk 0:01:46]}  Bf5 {[%clk 0:01:06]} 23. Be2 {[%clk 0:01:32]}  Qa5 {[%clk 0:00:59]} 24. Rd2 {[%clk 0:01:23]}  Rf7 {[%clk 0:00:39]} 25. Re1 {[%clk 0:01:18]}  Rcf8 {[%clk 0:00:38]} 26. Bf3 {[%clk 0:00:45]}  Bd7 {[%clk 0:00:37]} 27. Ne2 {[%clk 0:00:43]}  Nb4 {[%clk 0:00:31]} 28. Qc3 {[%clk 0:00:40]}  Nc6 {[%clk 0:00:16]} 29. Qxa5 {[%clk 0:00:40]}  Nxa5 {[%clk 0:00:17]} 30. Bd5 {[%clk 0:00:41]}  Rf6 {[%clk 0:00:16]} 31. Nd4 {[%clk 0:00:39]}  Re8 {[%clk 0:00:12]} 32. Rde2 {[%clk 0:00:37]}  e5 {[%clk 0:00:09]} 33. fxe5 {[%clk 0:00:37]}  dxe5 {[%clk 0:00:09]} 34. Rxe5 {[%clk 0:00:37]}  Rxe5 {[%clk 0:00:09]} 35. Rxe5 {[%clk 0:00:38]}  Bc6 {[%clk 0:00:07]} 36. Re7+ {[%clk 0:00:36]}  Kh8 {[%clk 0:00:08]} 37. Kg1 {[%clk 0:00:33]}  Rd6 {[%clk 0:00:06]} 38. Re6 {[%clk 0:00:24]}  Rxe6 {[%clk 0:00:04]} 39. Nxe6 {[%clk 0:00:25]}  Kh7 {[%clk 0:00:03]} 40. Kf2 {[%clk 0:00:21]}  Bxd5 {[%clk 0:00:02]} 41. cxd5 {[%clk 0:00:21]}  Kg8 {[%clk 0:00:03]} 42. d6 {[%clk 0:00:19]}  Kf7 {[%clk 0:00:03]} 43. d7 {[%clk 0:00:20]}  Nc6 {[%clk 0:00:03]} 44. d8=Q {[%clk 0:00:20]}  Kxe6 {[%clk 0:00:02]} 45. Qg8+ {[%clk 0:00:20]} 1-0


[Site "https://www.chess.com"]

[Event "Titled Tuesday Blitz July 6 2021"]
[White "Quparadze, Giga"]
[Black "Kotsur, Pavel"]
[WhiteFideId "13602250"]
[BlackFideId "13700278"]
[WhiteElo "2658"]
[BlackElo "2521"]
[Result "1-0"]
[Round "05"]
[TimeControl "180+1"]
[Date "2021.07.06"]
[WhiteClock "0:02:19"]
[BlackClock "0:00:48"]

1. e4 {[%clk 0:03:00]}  c5 {[%clk 0:02:58]} 2. Ne2 {[%clk 0:02:57]}  Nf6 {[%clk 0:02:54]} 3. Nbc3 {[%clk 0:02:57]}  d5 {[%clk 0:02:53]} 4. exd5 {[%clk 0:02:56]}  Nxd5 {[%clk 0:02:53]} 5. Nxd5 {[%clk 0:02:57]}  Qxd5 {[%clk 0:02:53]} 6. Nc3 {[%clk 0:02:57]}  Qd7 {[%clk 0:02:53]} 7. Bb5 {[%clk 0:02:56]}  Nc6 {[%clk 0:02:53]} 8. Qf3 {[%clk 0:02:56]}  e6 {[%clk 0:02:31]} 9. O-O {[%clk 0:02:55]}  Be7 {[%clk 0:02:30]} 10. d3 {[%clk 0:02:54]}  O-O {[%clk 0:02:29]} 11. Bxc6 {[%clk 0:02:54]}  bxc6 {[%clk 0:02:29]} 12. b3 {[%clk 0:02:52]}  Bf6 {[%clk 0:02:15]} 13. Bb2 {[%clk 0:02:52]}  Rb8 {[%clk 0:02:09]} 14. Na4 {[%clk 0:02:51]}  Bxb2 {[%clk 0:02:08]} 15. Nxb2 {[%clk 0:02:52]}  Rb4 {[%clk 0:02:05]} 16. Na4 {[%clk 0:02:51]}  e5 {[%clk 0:01:52]} 17. Nxc5 {[%clk 0:02:50]}  Qe7 {[%clk 0:01:49]} 18. Na4 {[%clk 0:02:44]}  Bb7 {[%clk 0:01:45]} 19. c4 {[%clk 0:02:41]}  Bc8 {[%clk 0:01:36]} 20. Qxc6 {[%clk 0:02:33]}  Rb8 {[%clk 0:01:24]} 21. Qc5 {[%clk 0:02:31]}  Qg5 {[%clk 0:01:21]} 22. f4 {[%clk 0:02:31]}  Qg6 {[%clk 0:01:19]} 23. fxe5 {[%clk 0:02:29]}  Bb7 {[%clk 0:01:14]} 24. Qf2 {[%clk 0:02:27]}  Qxd3 {[%clk 0:01:14]} 25. Nc5 {[%clk 0:02:27]}  Qg6 {[%clk 0:01:11]} 26. Nd7 {[%clk 0:02:26]}  h5 {[%clk 0:00:57]} 27. Nxb8 {[%clk 0:02:22]}  Rxb8 {[%clk 0:00:56]} 28. e6 {[%clk 0:02:21]}  Qxe6 {[%clk 0:00:48]} 29. Rae1 {[%clk 0:02:21]}  Qg6 {[%clk 0:00:48]} 30. Re7 {[%clk 0:02:21]}  Rf8 {[%clk 0:00:48]} 31. Rxb7 {[%clk 0:02:19]} 1-0


[Site "https://www.chess.com"]

[Event "Titled Tuesday Blitz July 6 2021"]
[White "Roman, Rodrigo"]
[Black "Khanin, Semen"]
[WhiteFideId "3701220"]
[BlackFideId "4111990"]
[WhiteElo "2043"]
[BlackElo "2521"]
[Result "0-1"]
[Round "05"]
[TimeControl "180+1"]
[Date "2021.07.06"]
[WhiteClock "0:00:06"]
[BlackClock "0:01:04"]

1. c4 {[%clk 0:02:59]}  Nf6 {[%clk 0:02:57]} 2. Nc3 {[%clk 0:02:57]}  e6 {[%clk 0:02:54]} 3. e4 {[%clk 0:02:53]}  d5 {[%clk 0:02:54]} 4. e5 {[%clk 0:02:51]}  d4 {[%clk 0:02:55]} 5. exf6 {[%clk 0:02:51]}  dxc3 {[%clk 0:02:55]} 6. bxc3 {[%clk 0:02:52]}  Qxf6 {[%clk 0:02:54]} 7. d4 {[%clk 0:02:51]}  Nc6 {[%clk 0:02:51]} 8. Nf3 {[%clk 0:02:51]}  e5 {[%clk 0:02:48]} 9. Bd3 {[%clk 0:02:48]}  Bd6 {[%clk 0:02:45]} 10. Bg5 {[%clk 0:02:40]}  Qe6 {[%clk 0:02:44]} 11. d5 {[%clk 0:02:40]}  Qg4 {[%clk 0:02:45]} 12. dxc6 {[%clk 0:02:31]}  e4 {[%clk 0:02:23]} 13. Qe2 {[%clk 0:02:30]}  O-O {[%clk 0:02:23]} 14. Bxe4 {[%clk 0:02:26]}  Re8 {[%clk 0:02:18]} 15. Bxh7+ {[%clk 0:02:26]}  Kf8 {[%clk 0:02:18]} 16. Be3 {[%clk 0:02:19]}  Qxg2 {[%clk 0:02:12]} 17. Rg1 {[%clk 0:02:12]}  Qh3 {[%clk 0:02:12]} 18. Ng5 {[%clk 0:01:53]}  Qxh2 {[%clk 0:02:01]} 19. O-O-O {[%clk 0:01:52]}  Rxe3 {[%clk 0:02:02]} 20. Qxe3 {[%clk 0:01:48]}  Bf5 {[%clk 0:01:59]} 21. Bxf5 {[%clk 0:00:56]}  Bf4 {[%clk 0:01:58]} 22. cxb7 {[%clk 0:00:56]}  Bxe3+ {[%clk 0:01:55]} 23. fxe3 {[%clk 0:00:55]}  Rb8 {[%clk 0:01:55]} 24. Bc8 {[%clk 0:00:48]}  Qxa2 {[%clk 0:01:53]} 25. Rd8+ {[%clk 0:00:43]}  Ke7 {[%clk 0:01:54]} 26. Rd7+ {[%clk 0:00:43]}  Ke8 {[%clk 0:01:49]} 27. Rgd1 {[%clk 0:00:32]}  Qa3+ {[%clk 0:01:40]} 28. Kc2 {[%clk 0:00:30]}  Qa2+ {[%clk 0:01:37]} 29. Kc1 {[%clk 0:00:29]}  Qa3+ {[%clk 0:01:28]} 30. Kc2 {[%clk 0:00:29]}  Qa4+ {[%clk 0:01:28]} 31. Kd3 {[%clk 0:00:26]}  Rxb7 {[%clk 0:01:28]} 32. Ke2 {[%clk 0:00:07]}  Qxc4+ {[%clk 0:01:15]} 33. Kf2 {[%clk 0:00:07]}  Rb2+ {[%clk 0:01:14]} 34. R1d2 {[%clk 0:00:07]}  Rxd2+ {[%clk 0:01:13]} 35. Rxd2 {[%clk 0:00:08]}  Qxc3 {[%clk 0:01:13]} 36. Bd7+ {[%clk 0:00:08]}  Ke7 {[%clk 0:01:13]} 37. Ke2 {[%clk 0:00:09]}  a5 {[%clk 0:01:07]} 38. Nf3 {[%clk 0:00:07]}  a4 {[%clk 0:01:06]} 39. Bf5 {[%clk 0:00:05]}  a3 {[%clk 0:01:05]} 40. Rd7+ {[%clk 0:00:05]}  Kf6 {[%clk 0:01:05]} 41. Nd4 {[%clk 0:00:06]}  a2 {[%clk 0:01:04]} 0-1


[Site "https://www.chess.com"]

[Event "Titled Tuesday Blitz July 6 2021"]
[White "Rostovtsev, Dmitry"]
[Black "Torkkola, Henri"]
[WhiteFideId "34278320"]
[BlackFideId "507660"]
[WhiteElo "2114"]
[BlackElo "2137"]
[Result "1-0"]
[Round "05"]
[TimeControl "180+1"]
[Date "2021.07.06"]
[WhiteClock "0:00:24"]
[BlackClock "0:00:02"]

1. e4 {[%clk 0:02:25]}  d6 {[%clk 0:02:59]} 2. d4 {[%clk 0:02:25]}  Nf6 {[%clk 0:02:59]} 3. Nc3 {[%clk 0:02:25]}  e5 {[%clk 0:03:00]} 4. Nf3 {[%clk 0:02:17]}  Nbd7 {[%clk 0:03:00]} 5. Bc4 {[%clk 0:02:09]}  Be7 {[%clk 0:03:00]} 6. O-O {[%clk 0:02:09]}  O-O {[%clk 0:03:00]} 7. a4 {[%clk 0:02:06]}  c6 {[%clk 0:03:01]} 8. a5 {[%clk 0:02:06]}  Rb8 {[%clk 0:02:43]} 9. a6 {[%clk 0:02:05]}  b5 {[%clk 0:02:43]} 10. Bd3 {[%clk 0:02:06]}  exd4 {[%clk 0:02:35]} 11. Nxd4 {[%clk 0:02:05]}  Qc7 {[%clk 0:02:15]} 12. Nf5 {[%clk 0:02:03]}  Re8 {[%clk 0:02:15]} 13. Bf4 {[%clk 0:02:02]}  Bf8 {[%clk 0:02:09]} 14. Be2 {[%clk 0:02:00]}  Ne5 {[%clk 0:02:07]} 15. Bg5 {[%clk 0:01:50]}  Bxf5 {[%clk 0:01:51]} 16. exf5 {[%clk 0:01:46]}  Nfd7 {[%clk 0:01:51]} 17. Ne4 {[%clk 0:01:31]}  d5 {[%clk 0:01:49]} 18. Ng3 {[%clk 0:01:31]}  f6 {[%clk 0:01:38]} 19. Bf4 {[%clk 0:01:30]}  Bd6 {[%clk 0:01:38]} 20. Be3 {[%clk 0:01:27]}  Nc4 {[%clk 0:01:32]} 21. Bc1 {[%clk 0:01:26]}  Re7 {[%clk 0:01:21]} 22. b3 {[%clk 0:01:24]}  Nce5 {[%clk 0:01:21]} 23. Be3 {[%clk 0:01:14]}  Rbe8 {[%clk 0:01:15]} 24. Rc1 {[%clk 0:01:04]}  Qc8 {[%clk 0:01:10]} 25. c4 {[%clk 0:01:02]}  bxc4 {[%clk 0:00:33]} 26. bxc4 {[%clk 0:01:02]}  Qa8 {[%clk 0:00:29]} 27. Qd2 {[%clk 0:00:51]}  Bc5 {[%clk 0:00:23]} 28. cxd5 {[%clk 0:00:37]}  Bxe3 {[%clk 0:00:22]} 29. fxe3 {[%clk 0:00:33]}  cxd5 {[%clk 0:00:22]} 30. Rfd1 {[%clk 0:00:33]}  Nb6 {[%clk 0:00:22]} 31. Nf1 {[%clk 0:00:27]}  Nec4 {[%clk 0:00:22]} 32. Bxc4 {[%clk 0:00:27]}  dxc4 {[%clk 0:00:20]} 33. Qd4 {[%clk 0:00:26]}  Rxe3 {[%clk 0:00:20]} 34. Nxe3 {[%clk 0:00:26]}  Re4 {[%clk 0:00:11]} 35. Qd8+ {[%clk 0:00:25]}  Qxd8 {[%clk 0:00:12]} 36. Rxd8+ {[%clk 0:00:26]}  Kf7 {[%clk 0:00:12]} 37. Nd5 {[%clk 0:00:27]}  Rd4 {[%clk 0:00:08]} 38. Nxb6 {[%clk 0:00:23]}  Rxd8 {[%clk 0:00:08]} 39. Nxc4 {[%clk 0:00:24]}  Rd5 {[%clk 0:00:03]} 40. Rb1 {[%clk 0:00:24]}  Rxf5 {[%clk 0:00:02]} 41. Nd6+ {[%clk 0:00:24]} 1-0


[Site "https://www.chess.com"]

[Event "Titled Tuesday Blitz July 6 2021"]
[White "Rustemov, Alexander"]
[Black "Terry, Renato"]
[WhiteFideId "4119002"]
[BlackFideId "3803457"]
[WhiteElo "2854"]
[BlackElo "2581"]
[Result "1-0"]
[Round "05"]
[TimeControl "180+1"]
[Date "2021.07.06"]
[WhiteClock "0:00:55"]
[BlackClock "0:00:59"]

1. d4 {[%clk 0:03:00]}  e6 {[%clk 0:02:58]} 2. c4 {[%clk 0:03:00]}  Bb4+ {[%clk 0:02:58]} 3. Bd2 {[%clk 0:02:59]}  Qe7 {[%clk 0:02:57]} 4. e4 {[%clk 0:02:58]}  Bxd2+ {[%clk 0:02:54]} 5. Qxd2 {[%clk 0:02:57]}  d6 {[%clk 0:02:55]} 6. Nc3 {[%clk 0:02:55]}  Nf6 {[%clk 0:02:56]} 7. Bd3 {[%clk 0:02:52]}  e5 {[%clk 0:02:56]} 8. Nge2 {[%clk 0:02:51]}  O-O {[%clk 0:02:54]} 9. O-O {[%clk 0:02:50]}  Nc6 {[%clk 0:02:54]} 10. d5 {[%clk 0:02:45]}  Nb8 {[%clk 0:02:54]} 11. b4 {[%clk 0:02:38]}  a5 {[%clk 0:02:54]} 12. a3 {[%clk 0:02:37]}  Na6 {[%clk 0:02:54]} 13. Rab1 {[%clk 0:02:36]}  Nh5 {[%clk 0:02:49]} 14. Qe3 {[%clk 0:02:26]}  g6 {[%clk 0:02:30]} 15. f3 {[%clk 0:02:21]}  axb4 {[%clk 0:02:24]} 16. axb4 {[%clk 0:02:21]}  f5 {[%clk 0:02:07]} 17. exf5 {[%clk 0:02:10]}  Bxf5 {[%clk 0:02:08]} 18. Bxf5 {[%clk 0:01:50]}  gxf5 {[%clk 0:02:06]} 19. f4 {[%clk 0:01:40]}  Rae8 {[%clk 0:02:00]} 20. fxe5 {[%clk 0:01:37]}  Qxe5 {[%clk 0:01:45]} 21. Qxe5 {[%clk 0:01:36]}  Rxe5 {[%clk 0:01:27]} 22. Nd4 {[%clk 0:01:25]}  Ng7 {[%clk 0:01:27]} 23. g3 {[%clk 0:01:08]}  Re3 {[%clk 0:01:17]} 24. Rf3 {[%clk 0:01:08]}  Rxf3 {[%clk 0:01:05]} 25. Nxf3 {[%clk 0:01:09]}  f4 {[%clk 0:01:05]} 26. g4 {[%clk 0:01:06]}  Re8 {[%clk 0:01:03]} 27. Kf2 {[%clk 0:01:05]}  Re3 {[%clk 0:01:02]} 28. Ne2 {[%clk 0:01:05]}  Re4 {[%clk 0:01:01]} 29. Nd2 {[%clk 0:00:59]}  Re7 {[%clk 0:00:59]} 30. Nxf4 {[%clk 0:00:55]} 1-0


[Site "https://www.chess.com"]

[Event "Titled Tuesday Blitz July 6 2021"]
[White "Samunenkov, Ihor"]
[Black "Shevtchenko, Olesya"]
[WhiteFideId "14187086"]
[BlackFideId "24131890"]
[WhiteElo "2281"]
[BlackElo "2003"]
[Result "1-0"]
[Round "05"]
[TimeControl "180+1"]
[Date "2021.07.06"]
[WhiteClock "0:00:04"]
[BlackClock "0:00:09"]

1. e4 {[%clk 0:03:00]}  c6 {[%clk 0:02:53]} 2. Nf3 {[%clk 0:02:58]}  d5 {[%clk 0:02:53]} 3. Nc3 {[%clk 0:02:58]}  Bg4 {[%clk 0:02:47]} 4. h3 {[%clk 0:02:58]}  Bxf3 {[%clk 0:02:46]} 5. Qxf3 {[%clk 0:02:59]}  d4 {[%clk 0:02:46]} 6. Ne2 {[%clk 0:02:53]}  e5 {[%clk 0:02:46]} 7. d3 {[%clk 0:02:52]}  Nd7 {[%clk 0:02:45]} 8. g3 {[%clk 0:02:17]}  Ngf6 {[%clk 0:02:42]} 9. h4 {[%clk 0:02:17]}  Bb4+ {[%clk 0:02:38]} 10. c3 {[%clk 0:02:14]}  Bc5 {[%clk 0:02:38]} 11. Bh3 {[%clk 0:02:07]}  Qb6 {[%clk 0:02:36]} 12. O-O {[%clk 0:02:05]}  h6 {[%clk 0:02:30]} 13. b4 {[%clk 0:01:27]}  Bd6 {[%clk 0:02:26]} 14. a3 {[%clk 0:01:24]}  O-O-O {[%clk 0:02:02]} 15. c4 {[%clk 0:01:13]}  c5 {[%clk 0:01:58]} 16. Bd2 {[%clk 0:01:12]}  Kb8 {[%clk 0:01:53]} 17. Rfb1 {[%clk 0:01:12]}  Qc7 {[%clk 0:01:52]} 18. b5 {[%clk 0:01:10]}  g5 {[%clk 0:01:49]} 19. hxg5 {[%clk 0:01:06]}  hxg5 {[%clk 0:01:50]} 20. Bxd7 {[%clk 0:00:50]}  Qxd7 {[%clk 0:01:31]} 21. Qxf6 {[%clk 0:00:45]}  Qh3 {[%clk 0:01:30]} 22. Qf3 {[%clk 0:00:45]}  Qh2+ {[%clk 0:01:23]} 23. Kf1 {[%clk 0:00:45]}  Rdf8 {[%clk 0:01:18]} 24. Bxg5 {[%clk 0:00:40]}  f5 {[%clk 0:01:17]} 25. exf5 {[%clk 0:00:27]}  Qh3+ {[%clk 0:01:16]} 26. Qg2 {[%clk 0:00:16]}  Qxf5 {[%clk 0:01:13]} 27. Bd2 {[%clk 0:00:15]}  Qxd3 {[%clk 0:01:11]} 28. Rd1 {[%clk 0:00:14]}  Qxc4 {[%clk 0:01:06]} 29. b6 {[%clk 0:00:14]}  axb6 {[%clk 0:01:06]} 30. Rab1 {[%clk 0:00:14]}  b5 {[%clk 0:01:00]} 31. Qe4 {[%clk 0:00:14]}  Rh2 {[%clk 0:00:54]} 32. Be1 {[%clk 0:00:13]}  Qe6 {[%clk 0:00:44]} 33. Rxb5 {[%clk 0:00:10]}  Rf7 {[%clk 0:00:36]} 34. Rdb1 {[%clk 0:00:10]}  Qh3+ {[%clk 0:00:19]} 35. Kg1 {[%clk 0:00:10]}  Rh7 {[%clk 0:00:17]} 36. Rxb7+ {[%clk 0:00:09]}  Kc8 {[%clk 0:00:17]} 37. Qc6+ {[%clk 0:00:04]}  Bc7 {[%clk 0:00:09]} 38. Rb8# {[%clk 0:00:04]} 1-0


[Site "https://www.chess.com"]

[Event "Titled Tuesday Blitz July 6 2021"]
[White "Sardana, Rishi"]
[Black "Tokman, Ariel"]
[WhiteFideId "25004301"]
[BlackFideId "117420"]
[WhiteElo "2340"]
[BlackElo "2345"]
[Result "1-0"]
[Round "05"]
[TimeControl "180+1"]
[Date "2021.07.06"]
[WhiteClock "0:00:04"]
[BlackClock "0:00:21"]

1. d4 {[%clk 0:02:58]}  d5 {[%clk 0:02:59]} 2. c4 {[%clk 0:02:58]}  c6 {[%clk 0:02:58]} 3. Nf3 {[%clk 0:02:58]}  Nf6 {[%clk 0:02:55]} 4. g3 {[%clk 0:02:59]}  g6 {[%clk 0:02:45]} 5. Bg2 {[%clk 0:02:58]}  Bg7 {[%clk 0:02:45]} 6. O-O {[%clk 0:02:54]}  O-O {[%clk 0:02:44]} 7. a4 {[%clk 0:02:54]}  a5 {[%clk 0:02:42]} 8. cxd5 {[%clk 0:02:46]}  cxd5 {[%clk 0:02:38]} 9. Nc3 {[%clk 0:02:46]}  Nc6 {[%clk 0:02:38]} 10. Bf4 {[%clk 0:02:47]}  Nb4 {[%clk 0:02:27]} 11. Ne5 {[%clk 0:02:42]}  Bd7 {[%clk 0:02:08]} 12. Rc1 {[%clk 0:02:30]}  e6 {[%clk 0:01:59]} 13. Qd2 {[%clk 0:02:28]}  Qb6 {[%clk 0:01:48]} 14. Nxd7 {[%clk 0:02:21]}  Nxd7 {[%clk 0:01:49]} 15. Nb5 {[%clk 0:02:22]}  Rac8 {[%clk 0:01:42]} 16. Bc7 {[%clk 0:01:52]}  Qa6 {[%clk 0:01:38]} 17. Bd6 {[%clk 0:01:52]}  Rfd8 {[%clk 0:01:29]} 18. Be7 {[%clk 0:01:39]}  Re8 {[%clk 0:01:26]} 19. Bxb4 {[%clk 0:01:37]}  axb4 {[%clk 0:01:22]} 20. Qxb4 {[%clk 0:01:38]}  Bf8 {[%clk 0:01:20]} 21. Qb3 {[%clk 0:01:27]}  Qa5 {[%clk 0:01:07]} 22. e4 {[%clk 0:01:04]}  dxe4 {[%clk 0:01:00]} 23. Bxe4 {[%clk 0:01:05]}  Nb6 {[%clk 0:01:00]} 24. Bxb7 {[%clk 0:00:21]}  Rxc1 {[%clk 0:01:00]} 25. Rxc1 {[%clk 0:00:22]}  Qxa4 {[%clk 0:01:00]} 26. Qxa4 {[%clk 0:00:22]}  Nxa4 {[%clk 0:01:01]} 27. b3 {[%clk 0:00:22]}  Nb6 {[%clk 0:00:51]} 28. Bf3 {[%clk 0:00:22]}  Rd8 {[%clk 0:00:47]} 29. Kf1 {[%clk 0:00:19]}  Bg7 {[%clk 0:00:45]} 30. Rd1 {[%clk 0:00:18]}  Rb8 {[%clk 0:00:38]} 31. Nc3 {[%clk 0:00:13]}  Nc8 {[%clk 0:00:33]} 32. Ne2 {[%clk 0:00:05]}  Rxb3 {[%clk 0:00:31]} 33. Kg2 {[%clk 0:00:06]}  Ne7 {[%clk 0:00:30]} 34. d5 {[%clk 0:00:06]}  Nxd5 {[%clk 0:00:28]} 35. Bxd5 {[%clk 0:00:07]}  exd5 {[%clk 0:00:29]} 36. Rxd5 {[%clk 0:00:07]}  Rb8 {[%clk 0:00:29]} 37. h4 {[%clk 0:00:06]}  h5 {[%clk 0:00:29]} 38. Nf4 {[%clk 0:00:06]}  Bf6 {[%clk 0:00:28]} 39. Rd3 {[%clk 0:00:06]}  Kg7 {[%clk 0:00:28]} 40. Nd5 {[%clk 0:00:06]}  Rb5 {[%clk 0:00:27]} 41. Nf4 {[%clk 0:00:05]}  Rf5 {[%clk 0:00:26]} 42. Rd7 {[%clk 0:00:05]}  Rc5 {[%clk 0:00:21]} 43. Ne6+ {[%clk 0:00:04]} 1-0


[Site "https://www.chess.com"]